[Event "Titled Tuesday Blitz March 28 Late 2023"]
[White "lluiss"]
[Black "Ozalp, Burak"]
[BlackFideId "6314210"]
[WhiteElo "2185"]
[BlackElo "2106"]
[Result "0-1"]
[Round "04"]
[TimeControl "180+2"]
[Date "2023.03.28"]
[WhiteClock "0:00:07"]
[BlackClock "0:00:05"]

1. Nf3 {[%clk 0:03:00]}  d5 {[%clk 0:02:59]} 2. d4 {[%clk 0:03:00]}  Nf6 {[%clk 0:02:59]} 3. c4 {[%clk 0:03:01]}  c6 {[%clk 0:02:58]} 4. cxd5 {[%clk 0:03:01]}  cxd5 {[%clk 0:02:58]} 5. Nc3 {[%clk 0:03:01]}  Nc6 {[%clk 0:02:58]} 6. Bf4 {[%clk 0:03:02]}  e6 {[%clk 0:02:57]} 7. e3 {[%clk 0:03:02]}  a6 {[%clk 0:02:55]} 8. Bd3 {[%clk 0:03:01]}  Bd6 {[%clk 0:02:56]} 9. Bxd6 {[%clk 0:03:00]}  Qxd6 {[%clk 0:02:56]} 10. O-O {[%clk 0:03:00]}  O-O {[%clk 0:02:56]} 11. Rc1 {[%clk 0:03:00]}  b5 {[%clk 0:02:50]} 12. Qd2 {[%clk 0:02:57]}  Bb7 {[%clk 0:02:49]} 13. Bb1 {[%clk 0:02:50]}  Rfe8 {[%clk 0:02:45]} 14. Rfd1 {[%clk 0:02:47]}  Rad8 {[%clk 0:02:26]} 15. h3 {[%clk 0:02:33]}  g6 {[%clk 0:02:24]} 16. Ne1 {[%clk 0:02:24]}  e5 {[%clk 0:02:22]} 17. dxe5 {[%clk 0:02:24]}  Nxe5 {[%clk 0:02:22]} 18. b3 {[%clk 0:02:23]}  h5 {[%clk 0:02:10]} 19. Qe2 {[%clk 0:02:17]}  Qb6 {[%clk 0:02:00]} 20. Nd3 {[%clk 0:02:02]}  d4 {[%clk 0:01:34]} 21. Nxe5 {[%clk 0:01:31]}  Rxe5 {[%clk 0:01:27]} 22. Qd2 {[%clk 0:01:16]}  d3 {[%clk 0:00:20]} 23. Bxd3 {[%clk 0:00:53]}  Ne4 {[%clk 0:00:14]} 24. Nxe4 {[%clk 0:00:46]}  Bxe4 {[%clk 0:00:15]} 25. Qc2 {[%clk 0:00:45]}  Bb7 {[%clk 0:00:14]} 26. Bf1 {[%clk 0:00:40]}  Rde8 {[%clk 0:00:13]} 27. Qc7 {[%clk 0:00:38]}  Qa7 {[%clk 0:00:09]} 28. Rc3 {[%clk 0:00:15]}  R5e7 {[%clk 0:00:09]} 29. Qc5 {[%clk 0:00:14]}  Qa8 {[%clk 0:00:09]} 30. Qg5 {[%clk 0:00:13]}  Be4 {[%clk 0:00:06]} 31. Rdc1 {[%clk 0:00:10]}  Qb7 {[%clk 0:00:06]} 32. Rc5 {[%clk 0:00:09]}  b4 {[%clk 0:00:05]} 33. f3 {[%clk 0:00:10]}  Bf5 {[%clk 0:00:01]} 34. e4 {[%clk 0:00:09]}  Be6 {[%clk 0:00:01]} 35. Qf4 {[%clk 0:00:08]}  Bc8 {[%clk 0:00:01]} 36. Qg3 {[%clk 0:00:07]}  Qa7 {[%clk 0:00:02]} 37. Kh1 {[%clk 0:00:07]}  Re6 {[%clk 0:00:02]} 38. Rxh5 {[%clk 0:00:07]}  Kg7 {[%clk 0:00:02]} 39. Rg5 {[%clk 0:00:07]}  Qe7 {[%clk 0:00:02]} 40. Be2 {[%clk 0:00:06]}  Bb7 {[%clk 0:00:03]} 41. Rgc5 {[%clk 0:00:05]}  Qd7 {[%clk 0:00:03]} 42. Bc4 {[%clk 0:00:04]}  R6e7 {[%clk 0:00:03]} 43. Qf4 {[%clk 0:00:04]}  Qd8 {[%clk 0:00:03]} 44. Bd5 {[%clk 0:00:04]}  Qb8 {[%clk 0:00:02]} 45. Bxb7 {[%clk 0:00:04]}  Qxf4 {[%clk 0:00:03]} 46. Bd5 {[%clk 0:00:02]}  Qe5 {[%clk 0:00:03]} 47. Bxf7 {[%clk 0:00:01]}  Qf6 {[%clk 0:00:03]} 48. Bxg6 {[%clk 0:00:01]}  Qxg6 {[%clk 0:00:03]} 49. Rc6 {[%clk 0:00:02]}  Qxc6 {[%clk 0:00:03]} 50. Rxc6 {[%clk 0:00:01]}  Re6 {[%clk 0:00:04]} 51. Rc7+ {[%clk 0:00:01]}  R8e7 {[%clk 0:00:05]} 52. Rc8 {[%clk 0:00:02]}  Rd6 {[%clk 0:00:05]} 53. Rc4 {[%clk 0:00:02]}  Red7 {[%clk 0:00:06]} 54. Kh2 {[%clk 0:00:02]}  a5 {[%clk 0:00:05]} 55. Rc5 {[%clk 0:00:03]}  Ra7 {[%clk 0:00:05]} 56. Rg5+ {[%clk 0:00:03]}  Kf7 {[%clk 0:00:05]} 57. Rf5+ {[%clk 0:00:03]}  Ke7 {[%clk 0:00:05]} 58. h4 {[%clk 0:00:04]}  Rd2 {[%clk 0:00:05]} 59. Kh3 {[%clk 0:00:03]}  Rxa2 {[%clk 0:00:05]} 60. h5 {[%clk 0:00:04]}  a4 {[%clk 0:00:05]} 61. h6 {[%clk 0:00:04]}  axb3 {[%clk 0:00:05]} 62. Rb5 {[%clk 0:00:04]}  b2 {[%clk 0:00:05]} 63. Rxb4 {[%clk 0:00:05]}  Rc7 {[%clk 0:00:03]} 64. h7 {[%clk 0:00:04]}  Rc8 {[%clk 0:00:03]} 65. Rb7+ {[%clk 0:00:03]}  Kd6 {[%clk 0:00:02]} 66. Rb6+ {[%clk 0:00:03]}  Kc5 {[%clk 0:00:02]} 67. Rb7 {[%clk 0:00:03]}  Rh8 {[%clk 0:00:03]} 68. g4 {[%clk 0:00:03]}  Rxh7+ {[%clk 0:00:03]} 69. Rxh7 {[%clk 0:00:03]}  b1=Q {[%clk 0:00:04]} 70. Rc7+ {[%clk 0:00:04]}  Kd4 {[%clk 0:00:04]} 71. Rd7+ {[%clk 0:00:05]}  Ke3 {[%clk 0:00:04]} 72. Re7 {[%clk 0:00:05]}  Qg1 {[%clk 0:00:04]} 73. Kh4 {[%clk 0:00:06]}  Rh2+ {[%clk 0:00:04]} 74. Kg5 {[%clk 0:00:07]}  Rf2 {[%clk 0:00:05]} 75. Rf7 {[%clk 0:00:06]}  Rxf3 {[%clk 0:00:05]} 76. Rf5 {[%clk 0:00:06]}  Qg3 {[%clk 0:00:04]} 77. Rxf3+ {[%clk 0:00:05]}  Qxf3 {[%clk 0:00:05]} 78. e5 {[%clk 0:00:05]}  Ke4 {[%clk 0:00:03]} 79. Kh4 {[%clk 0:00:05]}  Kxe5 {[%clk 0:00:02]} 80. Kh5 {[%clk 0:00:05]}  Kf4 {[%clk 0:00:03]} 81. Kh6 {[%clk 0:00:05]}  Qxg4 {[%clk 0:00:03]} 82. Kh7 {[%clk 0:00:06]}  Kf5 {[%clk 0:00:04]} 83. Kh6 {[%clk 0:00:07]}  Kf6 {[%clk 0:00:05]} 84. Kh7 {[%clk 0:00:07]}  Qg7# {[%clk 0:00:05]} 0-1


[Site "https://www.chess.com"]

[Event "Titled Tuesday Blitz March 28 Late 2023"]
[White "dDobravcan"]
[Black "Fernandez Siles, Luis"]
[BlackFideId "2209420"]
[WhiteElo "2142"]
[BlackElo "2186"]
[Result "0-1"]
[Round "04"]
[TimeControl "180+2"]
[Date "2023.03.28"]
[WhiteClock "0:00:01"]
[BlackClock "0:00:04"]

1. e4 {[%clk 0:03:00]}  c5 {[%clk 0:02:58]} 2. b4 {[%clk 0:03:00]}  cxb4 {[%clk 0:02:55]} 3. Bb2 {[%clk 0:03:00]}  d5 {[%clk 0:02:52]} 4. exd5 {[%clk 0:03:00]}  Nf6 {[%clk 0:02:52]} 5. d4 {[%clk 0:02:56]}  Nxd5 {[%clk 0:02:51]} 6. Bc4 {[%clk 0:02:54]}  Nc6 {[%clk 0:02:50]} 7. Nf3 {[%clk 0:02:51]}  g6 {[%clk 0:02:41]} 8. O-O {[%clk 0:02:43]}  Bg7 {[%clk 0:02:41]} 9. a3 {[%clk 0:02:42]}  bxa3 {[%clk 0:02:37]} 10. Nxa3 {[%clk 0:02:41]}  O-O {[%clk 0:02:37]} 11. h3 {[%clk 0:02:31]}  Bf5 {[%clk 0:02:22]} 12. c3 {[%clk 0:02:13]}  Qd7 {[%clk 0:02:19]} 13. Nc2 {[%clk 0:02:12]}  Rac8 {[%clk 0:02:04]} 14. Bb5 {[%clk 0:01:56]}  a6 {[%clk 0:02:00]} 15. Ba4 {[%clk 0:01:55]}  Nf4 {[%clk 0:01:51]} 16. Bc1 {[%clk 0:01:34]}  Nxh3+ {[%clk 0:01:41]} 17. gxh3 {[%clk 0:01:33]}  Bxh3 {[%clk 0:01:41]} 18. Ne3 {[%clk 0:01:29]}  Bxf1 {[%clk 0:01:22]} 19. Qxf1 {[%clk 0:01:28]}  e6 {[%clk 0:01:18]} 20. Ne5 {[%clk 0:01:23]}  Bxe5 {[%clk 0:01:13]} 21. dxe5 {[%clk 0:01:22]}  Qe7 {[%clk 0:01:11]} 22. Ng4 {[%clk 0:01:14]}  Qh4 {[%clk 0:01:01]} 23. Qg2 {[%clk 0:01:06]}  Ne7 {[%clk 0:00:57]} 24. Nf6+ {[%clk 0:01:00]}  Kh8 {[%clk 0:00:52]} 25. Bg5 {[%clk 0:00:47]}  Qc4 {[%clk 0:00:40]} 26. Nxh7 {[%clk 0:00:38]}  Qxc3 {[%clk 0:00:19]} 27. Bf6+ {[%clk 0:00:35]}  Kg8 {[%clk 0:00:18]} 28. Rf1 {[%clk 0:00:24]}  Rc4 {[%clk 0:00:16]} 29. Ng5 {[%clk 0:00:21]}  Rh4 {[%clk 0:00:13]} 30. Nf3 {[%clk 0:00:19]}  Rh5 {[%clk 0:00:11]} 31. Bxe7 {[%clk 0:00:18]}  Rc8 {[%clk 0:00:11]} 32. Ng5 {[%clk 0:00:14]}  Qb4 {[%clk 0:00:09]} 33. Bd1 {[%clk 0:00:12]}  Rh4 {[%clk 0:00:08]} 34. Bf3 {[%clk 0:00:09]}  Rcc4 {[%clk 0:00:07]} 35. Rd1 {[%clk 0:00:04]}  Rcd4 {[%clk 0:00:05]} 36. Rc1 {[%clk 0:00:02]}  Rc4 {[%clk 0:00:04]} 37. Rd1 {[%clk 0:00:02]}  Rhd4 {[%clk 0:00:04]} 38. Re1 {[%clk 0:00:01]}  Qxe1+ {[%clk 0:00:03]} 39. Kh2 {[%clk 0:00:01]}  Rh4+ {[%clk 0:00:04]} 0-1


[Site "https://www.chess.com"]

[Event "Titled Tuesday Blitz March 28 Late 2023"]
[White "Winkels, Marcel"]
[Black "Ipek, Egehan"]
[WhiteFideId "1003887"]
[BlackFideId "44523793"]
[WhiteElo "1900"]
[BlackElo "1948"]
[Result "0-1"]
[Round "04"]
[TimeControl "180+2"]
[Date "2023.03.28"]
[WhiteClock "0:00:21"]
[BlackClock "0:00:54"]

1. d4 {[%clk 0:03:00]}  Nf6 {[%clk 0:02:58]} 2. Bf4 {[%clk 0:03:01]}  d5 {[%clk 0:02:57]} 3. e3 {[%clk 0:03:00]}  c5 {[%clk 0:02:57]} 4. Nf3 {[%clk 0:03:01]}  e6 {[%clk 0:02:56]} 5. c3 {[%clk 0:02:59]}  Bd6 {[%clk 0:02:56]} 6. Bg3 {[%clk 0:02:55]}  Qc7 {[%clk 0:02:56]} 7. Nbd2 {[%clk 0:02:54]}  Nbd7 {[%clk 0:02:47]} 8. Bd3 {[%clk 0:02:53]}  O-O {[%clk 0:02:48]} 9. Qc2 {[%clk 0:02:42]}  e5 {[%clk 0:02:43]} 10. dxe5 {[%clk 0:02:30]}  Nxe5 {[%clk 0:02:43]} 11. Nxe5 {[%clk 0:02:29]}  Bxe5 {[%clk 0:02:44]} 12. Nf3 {[%clk 0:02:20]}  Bd6 {[%clk 0:02:26]} 13. Bh4 {[%clk 0:02:14]}  Ne4 {[%clk 0:02:09]} 14. Bxe4 {[%clk 0:02:02]}  dxe4 {[%clk 0:02:10]} 15. Qxe4 {[%clk 0:02:01]}  Bd7 {[%clk 0:02:10]} 16. O-O {[%clk 0:01:56]}  Bc6 {[%clk 0:02:09]} 17. Qg4 {[%clk 0:01:55]}  f5 {[%clk 0:01:51]} 18. Qh5 {[%clk 0:01:45]}  g6 {[%clk 0:01:48]} 19. Qh6 {[%clk 0:01:31]}  Rfe8 {[%clk 0:01:45]} 20. h3 {[%clk 0:01:25]}  Re4 {[%clk 0:01:39]} 21. Ng5 {[%clk 0:01:16]}  Bf8 {[%clk 0:01:37]} 22. Qxf8+ {[%clk 0:00:57]}  Rxf8 {[%clk 0:01:35]} 23. Nxe4 {[%clk 0:00:57]}  Bxe4 {[%clk 0:01:35]} 24. Rad1 {[%clk 0:00:57]}  Qc6 {[%clk 0:01:31]} 25. f3 {[%clk 0:00:55]}  Bd5 {[%clk 0:01:28]} 26. b3 {[%clk 0:00:55]}  c4 {[%clk 0:01:27]} 27. b4 {[%clk 0:00:53]}  a5 {[%clk 0:01:14]} 28. a3 {[%clk 0:00:52]}  axb4 {[%clk 0:01:13]} 29. axb4 {[%clk 0:00:52]}  Ra8 {[%clk 0:01:14]} 30. Rd4 {[%clk 0:00:50]}  Kg7 {[%clk 0:01:10]} 31. Rfd1 {[%clk 0:00:49]}  Bf7 {[%clk 0:01:08]} 32. Rd6 {[%clk 0:00:46]}  Ra1 {[%clk 0:01:01]} 33. Bf6+ {[%clk 0:00:40]}  Kh6 {[%clk 0:00:57]} 34. Be5 {[%clk 0:00:31]}  Qxd6 {[%clk 0:00:54]} 35. Bf4+ {[%clk 0:00:21]}  Qxf4 {[%clk 0:00:54]} 0-1


[Site "https://www.chess.com"]

[Event "Titled Tuesday Blitz March 28 Late 2023"]
[White "Sarkar, Justin"]
[Black "Tsukerman, Julia"]
[WhiteFideId "2010011"]
[BlackFideId "2621649"]
[WhiteElo "2189"]
[BlackElo "1667"]
[Result "1/2-1/2"]
[Round "04"]
[TimeControl "180+2"]
[Date "2023.03.28"]
[WhiteClock "0:00:03"]
[BlackClock "0:00:15"]

1. e4 {[%clk 0:02:26]}  c5 {[%clk 0:02:51]} 2. Nf3 {[%clk 0:02:26]}  d6 {[%clk 0:02:50]} 3. d4 {[%clk 0:02:25]}  cxd4 {[%clk 0:02:50]} 4. Nxd4 {[%clk 0:02:26]}  Nf6 {[%clk 0:02:50]} 5. Nc3 {[%clk 0:02:26]}  a6 {[%clk 0:02:48]} 6. Be2 {[%clk 0:02:26]}  e5 {[%clk 0:02:47]} 7. Nb3 {[%clk 0:02:26]}  Be6 {[%clk 0:02:47]} 8. Bg5 {[%clk 0:02:12]}  Be7 {[%clk 0:02:45]} 9. Bxf6 {[%clk 0:02:11]}  Bxf6 {[%clk 0:02:43]} 10. Qd3 {[%clk 0:02:12]}  Nc6 {[%clk 0:02:39]} 11. O-O-O {[%clk 0:02:11]}  Be7 {[%clk 0:02:38]} 12. Nd5 {[%clk 0:02:06]}  Bxd5 {[%clk 0:02:34]} 13. Qxd5 {[%clk 0:02:03]}  O-O {[%clk 0:02:23]} 14. c3 {[%clk 0:02:02]}  Qc7 {[%clk 0:02:17]} 15. Kb1 {[%clk 0:02:00]}  b5 {[%clk 0:02:08]} 16. h4 {[%clk 0:01:48]}  Na5 {[%clk 0:01:43]} 17. Nxa5 {[%clk 0:01:35]}  Qxa5 {[%clk 0:01:39]} 18. h5 {[%clk 0:01:35]}  h6 {[%clk 0:01:33]} 19. Rh3 {[%clk 0:01:26]}  Qb6 {[%clk 0:01:28]} 20. Rf3 {[%clk 0:01:14]}  Rac8 {[%clk 0:01:09]} 21. a3 {[%clk 0:00:52]}  Qc6 {[%clk 0:00:59]} 22. Qxc6 {[%clk 0:00:47]}  Rxc6 {[%clk 0:00:58]} 23. Rd5 {[%clk 0:00:45]}  Rfc8 {[%clk 0:00:51]} 24. Bd1 {[%clk 0:00:40]}  f6 {[%clk 0:00:34]} 25. Bb3 {[%clk 0:00:27]}  Kf8 {[%clk 0:00:33]} 26. a4 {[%clk 0:00:26]}  Rc5 {[%clk 0:00:28]} 27. axb5 {[%clk 0:00:22]}  axb5 {[%clk 0:00:22]} 28. Rfd3 {[%clk 0:00:20]}  b4 {[%clk 0:00:18]} 29. Rxc5 {[%clk 0:00:18]}  dxc5 {[%clk 0:00:16]} 30. Be6 {[%clk 0:00:17]}  Rc6 {[%clk 0:00:14]} 31. Bd5 {[%clk 0:00:12]}  Rb6 {[%clk 0:00:13]} 32. cxb4 {[%clk 0:00:07]}  Rxb4 {[%clk 0:00:13]} 33. b3 {[%clk 0:00:07]}  Rd4 {[%clk 0:00:13]} 34. Kc2 {[%clk 0:00:07]}  Rxd3 {[%clk 0:00:13]} 35. Kxd3 {[%clk 0:00:07]}  Ke8 {[%clk 0:00:14]} 36. Kc4 {[%clk 0:00:07]}  Kd7 {[%clk 0:00:14]} 37. Kb5 {[%clk 0:00:07]}  Kc7 {[%clk 0:00:14]} 38. f3 {[%clk 0:00:07]}  Bd6 {[%clk 0:00:14]} 39. g4 {[%clk 0:00:06]}  Be7 {[%clk 0:00:14]} 40. Bc4 {[%clk 0:00:06]}  Bd6 {[%clk 0:00:15]} 41. Bd5 {[%clk 0:00:06]}  Be7 {[%clk 0:00:15]} 42. Bc4 {[%clk 0:00:06]}  Bd6 {[%clk 0:00:15]} 43. Bd5 {[%clk 0:00:03]} 1/2-1/2


[Site "https://www.chess.com"]

[Event "Titled Tuesday Blitz March 28 Late 2023"]
[White "Sanchez, Robert"]
[Black "Ardila, Oscar Humberto"]
[WhiteFideId "2034360"]
[BlackFideId "4404742"]
[WhiteElo "2092"]
[BlackElo "1911"]
[Result "0-1"]
[Round "04"]
[TimeControl "180+2"]
[Date "2023.03.28"]
[WhiteClock "0:00:40"]
[BlackClock "0:00:22"]

1. e4 {[%clk 0:03:00]}  e5 {[%clk 0:02:59]} 2. Nf3 {[%clk 0:02:56]}  Nf6 {[%clk 0:02:59]} 3. Nxe5 {[%clk 0:02:56]}  d6 {[%clk 0:03:00]} 4. Nf3 {[%clk 0:02:57]}  Nxe4 {[%clk 0:03:00]} 5. Nc3 {[%clk 0:02:57]}  Nxc3 {[%clk 0:03:00]} 6. bxc3 {[%clk 0:02:58]}  Be7 {[%clk 0:03:01]} 7. d4 {[%clk 0:02:58]}  O-O {[%clk 0:03:02]} 8. Bd3 {[%clk 0:02:59]}  Nd7 {[%clk 0:03:03]} 9. h4 {[%clk 0:02:58]}  Nf6 {[%clk 0:03:01]} 10. Bg5 {[%clk 0:02:58]}  Bg4 {[%clk 0:03:01]} 11. Bxf6 {[%clk 0:02:58]}  Bxf6 {[%clk 0:03:00]} 12. Bxh7+ {[%clk 0:02:58]}  Kh8 {[%clk 0:02:58]} 13. Bd3 {[%clk 0:02:58]}  Re8+ {[%clk 0:02:58]} 14. Kf1 {[%clk 0:02:58]}  Qd7 {[%clk 0:02:52]} 15. Qd2 {[%clk 0:02:58]}  Bxf3 {[%clk 0:02:50]} 16. gxf3 {[%clk 0:02:55]}  Qc6 {[%clk 0:02:45]} 17. Qf4 {[%clk 0:02:54]}  Qxc3 {[%clk 0:02:21]} 18. Qf5 {[%clk 0:02:42]}  Kg8 {[%clk 0:02:21]} 19. Rd1 {[%clk 0:02:38]}  Qxd4 {[%clk 0:02:00]} 20. Qh7+ {[%clk 0:02:32]}  Kf8 {[%clk 0:02:01]} 21. h5 {[%clk 0:02:33]}  Bg5 {[%clk 0:01:28]} 22. h6 {[%clk 0:02:10]}  Bxh6 {[%clk 0:01:28]} 23. Rh5 {[%clk 0:01:48]}  Ke7 {[%clk 0:01:26]} 24. c3 {[%clk 0:01:31]}  Qxc3 {[%clk 0:00:59]} 25. Re1+ {[%clk 0:01:21]}  Qxe1+ {[%clk 0:00:45]} 26. Kxe1 {[%clk 0:01:19]}  Kd7+ {[%clk 0:00:46]} 27. Kf1 {[%clk 0:01:17]}  c6 {[%clk 0:00:46]} 28. Qf5+ {[%clk 0:01:14]}  Kc7 {[%clk 0:00:46]} 29. Qxf7+ {[%clk 0:01:14]}  Kb6 {[%clk 0:00:46]} 30. Rh4 {[%clk 0:01:03]}  a5 {[%clk 0:00:45]} 31. Kg2 {[%clk 0:00:58]}  Re5 {[%clk 0:00:45]} 32. Rh1 {[%clk 0:00:57]}  Rg5+ {[%clk 0:00:37]} 33. Kh3 {[%clk 0:00:55]}  Rb8 {[%clk 0:00:34]} 34. f4 {[%clk 0:00:50]}  Rd5 {[%clk 0:00:30]} 35. Rb1+ {[%clk 0:00:47]}  Ka7 {[%clk 0:00:30]} 36. Qc7 {[%clk 0:00:44]}  Bxf4 {[%clk 0:00:23]} 37. Qb6+ {[%clk 0:00:40]}  Ka8 {[%clk 0:00:23]} 38. Qa6+ {[%clk 0:00:40]}  bxa6 {[%clk 0:00:22]} 0-1


[Site "https://www.chess.com"]

[Event "Titled Tuesday Blitz March 28 Late 2023"]
[White "Martinez, Shawn"]
[Black "Dominguez Rincon, Miller Duvan"]
[WhiteFideId "2039770"]
[BlackFideId "4406583"]
[WhiteElo "2174"]
[BlackElo "2005"]
[Result "1-0"]
[Round "04"]
[TimeControl "180+2"]
[Date "2023.03.28"]
[WhiteClock "0:01:31"]
[BlackClock "0:00:12"]

1. d4 {[%clk 0:02:57]}  d5 {[%clk 0:01:07]} 2. Nf3 {[%clk 0:02:57]}  Nf6 {[%clk 0:01:06]} 3. e3 {[%clk 0:02:54]}  e6 {[%clk 0:01:06]} 4. Bd3 {[%clk 0:02:54]}  c5 {[%clk 0:01:06]} 5. b3 {[%clk 0:02:53]}  Nc6 {[%clk 0:01:07]} 6. a3 {[%clk 0:02:52]}  Bd6 {[%clk 0:01:07]} 7. Bb2 {[%clk 0:02:52]}  O-O {[%clk 0:01:07]} 8. Nbd2 {[%clk 0:02:51]}  b6 {[%clk 0:01:07]} 9. O-O {[%clk 0:02:50]}  Bb7 {[%clk 0:01:07]} 10. Ne5 {[%clk 0:02:47]}  Qc7 {[%clk 0:01:06]} 11. f4 {[%clk 0:02:46]}  Nd7 {[%clk 0:01:06]} 12. Rf3 {[%clk 0:02:41]}  f5 {[%clk 0:01:04]} 13. Rh3 {[%clk 0:02:40]}  Nf6 {[%clk 0:01:03]} 14. c4 {[%clk 0:02:27]}  Rad8 {[%clk 0:00:37]} 15. cxd5 {[%clk 0:02:15]}  exd5 {[%clk 0:00:37]} 16. Bxf5 {[%clk 0:02:11]}  Ne4 {[%clk 0:00:12]} 17. Bxh7+ {[%clk 0:02:06]}  Kh8 {[%clk 0:00:12]} 18. Ng6# {[%clk 0:01:31]} 1-0


[Site "https://www.chess.com"]

[Event "Titled Tuesday Blitz March 28 Late 2023"]
[White "Ardito, Andrew"]
[Black "morozcoma"]
[WhiteFideId "2033976"]
[WhiteElo "2085"]
[BlackElo "2257"]
[Result "0-1"]
[Round "04"]
[TimeControl "180+2"]
[Date "2023.03.28"]
[WhiteClock "0:01:42"]
[BlackClock "0:02:04"]

1. e4 {[%clk 0:02:55]}  e5 {[%clk 0:03:00]} 2. Nf3 {[%clk 0:02:55]}  Nc6 {[%clk 0:03:00]} 3. Nc3 {[%clk 0:02:52]}  Nf6 {[%clk 0:03:00]} 4. g3 {[%clk 0:02:52]}  d5 {[%clk 0:03:00]} 5. exd5 {[%clk 0:02:51]}  Nxd5 {[%clk 0:03:00]} 6. Bg2 {[%clk 0:02:51]}  Be6 {[%clk 0:03:00]} 7. O-O {[%clk 0:02:51]}  Nxc3 {[%clk 0:02:57]} 8. bxc3 {[%clk 0:02:51]}  Be7 {[%clk 0:02:55]} 9. Re1 {[%clk 0:02:50]}  Bf6 {[%clk 0:02:55]} 10. d4 {[%clk 0:02:50]}  exd4 {[%clk 0:02:54]} 11. cxd4 {[%clk 0:02:50]}  Nxd4 {[%clk 0:02:52]} 12. Nxd4 {[%clk 0:02:43]}  Qxd4 {[%clk 0:02:52]} 13. Qxd4 {[%clk 0:02:42]}  Bxd4 {[%clk 0:02:53]} 14. Rb1 {[%clk 0:02:43]}  O-O {[%clk 0:02:44]} 15. Rxb7 {[%clk 0:02:41]}  Bb6 {[%clk 0:02:41]} 16. Rxb6 {[%clk 0:02:28]}  cxb6 {[%clk 0:02:42]} 17. Bxa8 {[%clk 0:02:28]}  Rxa8 {[%clk 0:02:43]} 18. a4 {[%clk 0:02:13]}  Rc8 {[%clk 0:02:39]} 19. Re2 {[%clk 0:02:10]}  h6 {[%clk 0:02:36]} 20. Bb2 {[%clk 0:02:03]}  Bg4 {[%clk 0:02:30]} 21. Re4 {[%clk 0:02:01]}  Bf3 {[%clk 0:02:22]} 22. Re3 {[%clk 0:01:56]}  Rxc2 {[%clk 0:02:17]} 23. Rxf3 {[%clk 0:01:56]}  Rxb2 {[%clk 0:02:16]} 24. Ra3 {[%clk 0:01:55]}  Kf8 {[%clk 0:02:14]} 25. Kg2 {[%clk 0:01:54]}  Ke7 {[%clk 0:02:14]} 26. Kf3 {[%clk 0:01:54]}  Kd6 {[%clk 0:02:13]} 27. a5 {[%clk 0:01:55]}  b5 {[%clk 0:02:13]} 28. Rd3+ {[%clk 0:01:55]}  Kc6 {[%clk 0:02:12]} 29. Rc3+ {[%clk 0:01:54]}  Kb7 {[%clk 0:02:12]} 30. Rd3 {[%clk 0:01:53]}  Rc2 {[%clk 0:02:10]} 31. Rd7+ {[%clk 0:01:53]}  Rc7 {[%clk 0:02:09]} 32. Rd6 {[%clk 0:01:54]}  Re7 {[%clk 0:02:07]} 33. a6+ {[%clk 0:01:54]}  Kc7 {[%clk 0:02:04]} 34. Rd5 {[%clk 0:01:50]}  Kb6 {[%clk 0:02:05]} 35. Rd6+ {[%clk 0:01:50]}  Ka5 {[%clk 0:02:05]} 36. Kf4 {[%clk 0:01:48]}  b4 {[%clk 0:02:05]} 37. Kf5 {[%clk 0:01:46]}  b3 {[%clk 0:02:05]} 38. Rd3 {[%clk 0:01:42]}  Ka4 {[%clk 0:02:04]} 0-1


[Site "https://www.chess.com"]

[Event "Titled Tuesday Blitz March 28 Late 2023"]
[White "Maranhao,Jose Renato Ruiz"]
[Black "Torres Dominguez, David"]
[WhiteFideId "2135175"]
[BlackFideId "2220857"]
[WhiteElo "1970"]
[BlackElo "1999"]
[Result "1-0"]
[Round "04"]
[TimeControl "180+2"]
[Date "2023.03.28"]
[WhiteClock "0:00:09"]
[BlackClock "0:00:02"]

1. e4 {[%clk 0:03:00]}  Nc6 {[%clk 0:02:59]} 2. d4 {[%clk 0:03:01]}  e5 {[%clk 0:02:58]} 3. dxe5 {[%clk 0:03:01]}  Nxe5 {[%clk 0:02:59]} 4. Nf3 {[%clk 0:03:02]}  Qf6 {[%clk 0:02:57]} 5. Nxe5 {[%clk 0:02:59]}  Qxe5 {[%clk 0:02:57]} 6. Bd3 {[%clk 0:02:58]}  Bb4+ {[%clk 0:02:33]} 7. c3 {[%clk 0:02:56]}  Bc5 {[%clk 0:02:33]} 8. O-O {[%clk 0:02:53]}  Ne7 {[%clk 0:02:34]} 9. Nd2 {[%clk 0:02:20]}  O-O {[%clk 0:02:32]} 10. Kh1 {[%clk 0:02:09]}  d6 {[%clk 0:02:19]} 11. f4 {[%clk 0:02:07]}  Qf6 {[%clk 0:02:19]} 12. Qh5 {[%clk 0:01:44]}  Qg6 {[%clk 0:02:15]} 13. Qh4 {[%clk 0:01:39]}  f6 {[%clk 0:01:55]} 14. f5 {[%clk 0:01:22]}  Qg5 {[%clk 0:01:44]} 15. Bc4+ {[%clk 0:00:38]}  d5 {[%clk 0:01:36]} 16. Qxg5 {[%clk 0:00:34]}  fxg5 {[%clk 0:01:35]} 17. exd5 {[%clk 0:00:30]}  Bxf5 {[%clk 0:01:12]} 18. d6+ {[%clk 0:00:27]}  Kh8 {[%clk 0:01:10]} 19. dxe7 {[%clk 0:00:24]}  Rf6 {[%clk 0:01:06]} 20. Nb3 {[%clk 0:00:20]}  Bxe7 {[%clk 0:01:04]} 21. Bxg5 {[%clk 0:00:21]}  Be4 {[%clk 0:01:00]} 22. Bxf6 {[%clk 0:00:20]}  Bxf6 {[%clk 0:01:00]} 23. Rae1 {[%clk 0:00:19]}  Re8 {[%clk 0:00:49]} 24. Nc5 {[%clk 0:00:14]}  Bc6 {[%clk 0:00:45]} 25. Rxe8+ {[%clk 0:00:14]}  Bxe8 {[%clk 0:00:46]} 26. Nxb7 {[%clk 0:00:13]}  h6 {[%clk 0:00:44]} 27. Rxf6 {[%clk 0:00:10]}  gxf6 {[%clk 0:00:44]} 28. Nc5 {[%clk 0:00:09]}  f5 {[%clk 0:00:40]} 29. Ne6 {[%clk 0:00:07]}  c6 {[%clk 0:00:36]} 30. g3 {[%clk 0:00:07]}  Kh7 {[%clk 0:00:35]} 31. Kg2 {[%clk 0:00:06]}  Kg6 {[%clk 0:00:35]} 32. Kf3 {[%clk 0:00:07]}  Kf6 {[%clk 0:00:30]} 33. Nd4 {[%clk 0:00:05]}  Bd7 {[%clk 0:00:28]} 34. Kf4 {[%clk 0:00:04]}  c5 {[%clk 0:00:23]} 35. Nb5 {[%clk 0:00:03]}  a6 {[%clk 0:00:23]} 36. Na3 {[%clk 0:00:02]}  Bc8 {[%clk 0:00:22]} 37. Nc2 {[%clk 0:00:02]}  Bb7 {[%clk 0:00:21]} 38. Ne3 {[%clk 0:00:02]}  a5 {[%clk 0:00:19]} 39. Nxf5 {[%clk 0:00:02]}  Bc8 {[%clk 0:00:20]} 40. Nd6 {[%clk 0:00:02]}  Bd7 {[%clk 0:00:19]} 41. Ne4+ {[%clk 0:00:03]}  Ke7 {[%clk 0:00:18]} 42. Nxc5 {[%clk 0:00:04]}  Bc6 {[%clk 0:00:18]} 43. Ne4 {[%clk 0:00:04]}  a4 {[%clk 0:00:17]} 44. a3 {[%clk 0:00:04]}  Bb7 {[%clk 0:00:16]} 45. Bd3 {[%clk 0:00:05]}  Bc6 {[%clk 0:00:16]} 46. Bc2 {[%clk 0:00:05]}  Bb7 {[%clk 0:00:17]} 47. h4 {[%clk 0:00:06]}  Bc6 {[%clk 0:00:17]} 48. Nc5 {[%clk 0:00:07]}  Kd6 {[%clk 0:00:14]} 49. Nxa4 {[%clk 0:00:07]}  Bd5 {[%clk 0:00:14]} 50. b4 {[%clk 0:00:06]}  Be6 {[%clk 0:00:13]} 51. Nb2 {[%clk 0:00:07]}  Bf7 {[%clk 0:00:11]} 52. c4 {[%clk 0:00:07]}  Kc6 {[%clk 0:00:11]} 53. c5 {[%clk 0:00:08]}  Be8 {[%clk 0:00:07]} 54. Be4+ {[%clk 0:00:09]}  Kb5 {[%clk 0:00:06]} 55. Ke5 {[%clk 0:00:09]}  Bf7 {[%clk 0:00:03]} 56. Kd6 {[%clk 0:00:09]}  Bg6 {[%clk 0:00:02]} 57. Bxg6 {[%clk 0:00:09]} 1-0


[Site "https://www.chess.com"]